bitfinex/quotes_BTCUSD_20260308
["timestamp","ask_amount","ask_price","bid_price","bid_amount"]
[1772996192120,0.07478424,66859.0,66851.0,0.0002]
[1772996198314,0.05048221,66859.0,66851.0,0.0002]
[1772996199667,0.04174693,66858.0,66847.0,0.07499753]
[1772996199992,0.04186618,66858.0,66848.0,0.07479547]
[1772996200561,0.11653341,66857.0,66847.0,0.0002]
[1772996200736,0.07490573,66858.0,66847.0,0.0002]
[1772996200972,0.07478648,66857.0,66847.0,0.0002]
[1772996202044,0.00911462,66856.0,66846.0,0.0002]
[1772996202247,0.07478648,66857.0,66842.0,0.07480326]
[1772996202248,0.00959605,66854.0,66842.0,0.07480326]
[1772996202446,0.00922524,66853.0,66842.0,0.07480326]
[1772996202894,0.00922524,66853.0,66841.0,0.07522266]
[1772996202895,0.00770524,66851.0,66841.0,0.0004194]
[1772996203134,0.00770524,66851.0,66841.0,0.07522341]
[1772996203265,0.00770524,66851.0,66841.0,0.0004194]
[1772996203792,0.00770524,66851.0,66844.0,0.0002]
[1772996204169,0.00770524,66851.0,66844.0,0.0004184]
[1772996205112,0.07479431,66850.0,66844.0,0.0004184]
[1772996205915,0.07479431,66850.0,66844.0,0.07521913]
[1772996206945,0.07479431,66850.0,66844.0,0.0004184]
[1772996208922,0.07479431,66851.0,66844.0,0.0004184]
[1772996209131,0.07479431,66851.0,66844.0,0.07521898]
[1772996209523,0.07479431,66851.0,66844.0,0.0004184]
[1772996209925,0.07479431,66851.0,66844.0,0.0752194]
[1772996210488,0.07479431,66851.0,66844.0,0.0004184]
[1772996213212,0.00152,66850.0,66844.0,0.04059192]
[1772996213877,0.0763152,66850.0,66844.0,0.11539255]
[1772996214057,0.0763152,66850.0,66844.0,0.04059192]
[1772996215310,0.1663842,66850.0,66844.0,0.04059192]
[1772996215508,0.1648642,66850.0,66844.0,0.11539294]
[1772996215706,0.00152,66849.0,66844.0,0.07521942]
[1772996215868,0.00152,66849.0,66846.0,0.04017352]
[1772996216207,0.00152,66849.0,66846.0,0.04039192]
[1772996217511,0.00152,66849.0,66846.0,0.0002184]
[1772996217862,0.07731591,66849.0,66846.0,0.0002184]
[1772996221351,0.07731591,66849.0,66846.0,0.04039192]
[1772996222201,0.07631591,66849.0,66846.0,0.04039192]
[1772996222733,0.07631591,66849.0,66846.0,0.0002184]
[1772996224459,0.07731591,66849.0,66846.0,0.0002184]
[1772996224693,0.07731591,66849.0,66844.0,0.0002]
[1772996224871,0.07731591,66849.0,66844.0,0.0412868]
[1772996225072,0.07731591,66849.0,66844.0,0.0002]
[1772996225276,0.07731591,66849.0,66841.0,0.07500399]
[1772996225605,0.07731591,66849.0,66841.0,0.07500413]
[1772996226365,0.07731591,66849.0,66841.0,0.0002]
[1772996226598,0.07731591,66849.0,66838.0,0.07495687]
[1772996226599,0.0217365,66848.0,66838.0,0.00015]
[1772996226801,0.07479767,66847.0,66838.0,0.00015]
[1772996227103,0.09653417,66847.0,66838.0,0.00015]
[1772996227279,0.00152,66846.0,66838.0,0.00015]
[1772996227601,0.00152,66845.0,66838.0,0.00015]
[1772996227748,0.00152,66845.0,66841.0,0.13851324]
[1772996227949,0.00152,66845.0,66842.0,0.17960004]
[1772996228581,0.00152,66844.0,66842.0,0.17960004]
[1772996228960,0.07479767,66848.0,66842.0,0.17960004]
[1772996229200,0.00152,66847.0,66842.0,0.17960004]
[1772996229619,0.00152,66846.0,66842.0,0.17960004]
[1772996230017,0.07479767,66848.0,66842.0,0.17960004]
[1772996230323,0.00152,66845.0,66842.0,0.17960004]
[1772996230535,0.07479767,66848.0,66833.0,0.00016]
[1772996230536,0.02197106,66846.0,66833.0,0.00016]
[1772996230732,0.14337365,66845.0,66830.0,0.090319]
[1772996231034,0.02197106,66842.0,66830.0,0.090319]
[1772996231261,0.07480214,66843.0,66830.0,0.090319]
[1772996231262,0.0219576,66840.0,66830.0,0.090319]
[1772996231404,0.00152,66841.0,66830.0,0.34417758]
[1772996231605,0.00152,66841.0,66835.0,0.0002]
[1772996233611,0.0748055,66840.0,66835.0,0.0002]
[1772996235028,0.00152,66839.0,66835.0,0.0002]
[1772996235231,0.00152,66838.0,66835.0,0.0002]
[1772996236364,0.07480886,66837.0,66835.0,0.0002]
[1772996237566,0.07480886,66837.0,66835.0,0.00031925]
[1772996239290,0.07580886,66837.0,66835.0,0.00031925]
[1772996240509,0.07480886,66837.0,66835.0,0.00031925]
[1772996240850,0.07580886,66837.0,66835.0,0.00031925]
[1772996244128,0.00152,66837.0,66835.0,0.00031925]
[1772996245360,0.07632886,66837.0,66835.0,0.00031925]
[1772996247018,0.07732886,66837.0,66835.0,0.00031925]
[1772996248562,0.07632886,66837.0,66835.0,0.00031925]
[1772996251079,0.07628886,66837.0,66835.0,0.00031925]
[1772996253921,0.00148,66837.0,66835.0,0.00031925]
[1772996259064,0.07480669,66839.0,66835.0,0.00031925]
[1772996259298,0.00152,66837.0,66835.0,0.00031925]
[1772996267639,0.00174001,66837.0,66835.0,0.00031925]
[1772996270047,0.00152,66852.0,66836.0,0.07480998]
[1772996270252,0.00148,66853.0,66840.0,0.1450431]
[1772996270456,0.00152,66853.0,66843.0,0.04098808]
[1772996270816,0.00152,66853.0,66845.0,0.04098808]
[1772996271161,0.00152,66853.0,66849.0,0.04098808]
[1772996271479,0.00152,66852.0,66851.0,0.18603118]
[1772996271684,0.00152,66852.0,66843.0,0.001]
[1772996271800,0.07500873,66856.0,66844.0,0.1450431]
[1772996272012,0.0763116,66853.0,66849.0,0.1450431]
[1772996272207,0.0747916,66853.0,66852.0,0.04098808]
[1772996272412,0.0763116,66853.0,66852.0,0.04098808]
[1772996273257,0.07478896,66855.0,66852.0,0.04098808]
[1772996273431,0.00152,66854.0,66852.0,0.04098808]
[1772996273839,0.00152,66853.0,66852.0,0.04098808]
[1772996274267,0.07478896,66855.0,66852.0,0.04098808]
[1772996274475,0.07478896,66855.0,66851.0,0.1450431]
[1772996274476,0.00152,66854.0,66847.0,0.1450431]
[1772996274675,0.00152,66854.0,66847.0,0.18603118]
[1772996274928,0.00022001,66857.0,66847.0,0.1450431]
[1772996275143,0.00022001,66857.0,66847.0,0.18603118]
[1772996275316,0.07505315,66860.0,66849.0,0.1450431]
[1772996275516,0.00022001,66853.0,66848.0,0.07479655]
[1772996275718,0.00022001,66853.0,66849.0,0.18603118]
[1772996276489,0.00022001,66853.0,66846.0,0.07479879]
[1772996276690,0.00022001,66853.0,66844.0,0.07480021]
[1772996277495,0.07501207,66853.0,66842.0,0.07480102]
[1772996277913,0.07501207,66853.0,66843.0,0.18603118]
[1772996279514,0.07501207,66853.0,66844.0,0.07480102]
[1772996279705,0.07001207,66853.0,66842.0,0.07480262]
[1772996280866,0.07001207,66853.0,66842.0,0.07580262]
[1772996281952,0.07023208,66853.0,66842.0,0.07480262]
[1772996284615,0.07023208,66853.0,66841.0,0.1434165]
[1772996284817,0.00022001,66853.0,66842.0,0.04289134]
[1772996285015,0.00022001,66853.0,66843.0,0.04289134]
[1772996285166,0.00022001,66853.0,66844.0,0.13135388]
[1772996285816,0.00022001,66853.0,66844.0,0.17424522]
[1772996286218,0.00022001,66853.0,66841.0,0.13135388]
[1772996286447,0.00022001,66853.0,66843.0,0.17424522]
[1772996286602,0.07479207,66852.0,66844.0,0.07480102]
[1772996286801,0.07479207,66852.0,66844.0,0.24904624]
[1772996286978,0.07479207,66852.0,66844.0,0.11769236]
[1772996287186,0.07479207,66852.0,66845.0,0.13135388]
[1772996287605,0.07479207,66852.0,66845.0,0.17424522]
[1772996287829,0.07627207,66852.0,66845.0,0.17424522]
[1772996289406,0.07627207,66852.0,66846.0,0.07479879]
[1772996290626,0.07627207,66852.0,66846.0,0.07475879]
[1772996292582,0.07627207,66852.0,66845.0,0.17424522]
[1772996292583,0.07478448,66859.0,66842.0,0.0002]
[1772996292758,0.00022001,66864.0,66843.0,0.00148]
[1772996292759,0.07495743,66861.0,66843.0,0.00148]
[1772996292964,0.00148,66859.0,66844.0,0.13135388]
[1772996293159,0.00148,66859.0,66847.0,0.04184533]
[1772996293365,0.07495743,66861.0,66842.0,0.0002]
[1772996293366,0.00148,66860.0,66850.0,0.13135388]
[1772996293612,0.00148,66860.0,66852.0,0.13135388]
[1772996293828,0.00148,66860.0,66853.0,0.04184533]
[1772996294705,0.07495743,66861.0,66853.0,0.11663564]
[1772996294894,0.00170001,66860.0,66853.0,0.11663564]
[1772996295085,0.00170001,66860.0,66853.0,0.07479031]
[1772996295608,0.00170001,66860.0,66854.0,0.04184533]
[1772996296015,0.00581001,66863.0,66855.0,0.13135388]
[1772996296242,0.00022001,66864.0,66853.0,0.07479031]
[1772996296243,0.07477306,66869.0,66858.0,0.04184533]
[1772996296435,0.0749954,66867.0,66853.0,0.07479031]
[1772996296739,0.07477753,66865.0,66855.0,0.07478872]
[1772996297085,0.07625753,66865.0,66855.0,0.07478872]
[1772996297289,0.00148,66865.0,66855.0,0.07478872]
[1772996297507,0.00156325,66865.0,66855.0,0.07478872]
[1772996297894,0.00156325,66865.0,66855.0,0.07578872]
[1772996298093,0.00156325,66865.0,66855.0,0.07478872]
[1772996298599,0.00156325,66865.0,66856.0,0.04184533]
[1772996298805,0.00156325,66865.0,66857.0,0.07478648]
[1772996303808,0.11369283,66868.0,66867.0,0.42321996]
[1772996303936,0.11517283,66868.0,66867.0,0.37998008]
[1772996305424,0.11517283,66868.0,66855.0,0.0002]
[1772996305425,0.03891865,66867.0,66855.0,0.0002]
[1772996305629,0.03891865,66867.0,66855.0,0.07507182]
[1772996305821,0.03891865,66865.0,66854.0,0.07478983]
[1772996306025,0.03899593,66865.0,66854.0,0.07478983]
[1772996306813,0.03899593,66865.0,66855.0,0.001]
[1772996307012,0.03899593,66865.0,66854.0,0.07478983]
[1772996307220,0.03891865,66863.0,66850.0,5e-05]
[1772996307406,0.00148,66862.0,66850.0,5e-05]
[1772996308637,0.04039865,66862.0,66850.0,5e-05]
[1772996309343,0.07478201,66861.0,66850.0,5e-05]
[1772996309524,0.07478201,66861.0,66850.0,0.00105]
[1772996309724,0.07478201,66861.0,66850.0,0.00025]
[1772996311315,0.07478201,66861.0,66851.0,0.07479319]
[1772996312721,0.03891865,66860.0,66850.0,0.00025]
[1772996312919,0.03891865,66860.0,66850.0,0.07504431]
[1772996313333,0.03891865,66858.0,66850.0,0.07504431]
[1772996313567,0.00148,66857.0,66850.0,0.07504431]
[1772996313832,0.00148,66857.0,66851.0,0.001]
[1772996314035,0.00148,66857.0,66850.0,0.07504431]
[1772996314785,0.00148,66857.0,66850.0,0.07500431]
[1772996317048,0.07626656,66857.0,66850.0,0.07500431]
[1772996319647,0.04237007,66856.0,66848.0,0.07499596]
[1772996319946,0.07478872,66855.0,66848.0,0.0002]
[1772996326307,0.04237007,66856.0,66848.0,0.0002]
[1772996326308,0.1171578,66856.0,66848.0,0.0002]
[1772996326819,0.07478773,66856.0,66848.0,0.0002]
[1772996328172,0.05005853,66859.0,66848.0,0.0002]
[1772996328377,0.00148,66855.0,66848.0,0.0002]
[1772996328575,0.00148,66854.0,66848.0,0.0002]
[1772996330281,0.00148,66854.0,66849.0,0.07479543]
[1772996335021,0.00026553,66854.0,66849.0,0.07479543]
[1772996337010,0.00026553,66854.0,66842.0,0.0002]
[1772996337011,0.07479095,66853.0,66842.0,0.0002]
[1772996337251,0.04237007,66852.0,66842.0,0.0002]
[1772996339075,0.11716326,66851.0,66842.0,0.0002]
[1772996339770,0.07479319,66851.0,66842.0,0.0002]
[1772996339974,0.04237007,66850.0,66842.0,0.0002]
[1772996340173,0.00148,66849.0,66842.0,0.0002]
[1772996340379,0.00132851,66849.0,66842.0,0.0002]
[1772996341544,0.00132851,66849.0,66844.0,0.13707632]
[1772996341747,0.00148,66857.0,66847.0,0.03924433]
[1772996342043,0.00148,66857.0,66842.0,0.0002]
[1772996342044,0.00148,66858.0,66849.0,0.17632065]
[1772996342234,0.00148,66858.0,66849.0,0.03924433]
[1772996342434,0.00148,66858.0,66850.0,0.13707632]
[1772996342637,0.00148,66857.0,66850.0,0.13707632]
[1772996343540,0.07626536,66858.0,66851.0,0.03924433]
[1772996343745,0.07626536,66858.0,66852.0,0.14782309]
[1772996344167,0.07478536,66858.0,66852.0,0.14782309]
[1772996344686,0.07626536,66858.0,66852.0,0.14782309]
[1772996345695,0.07478536,66858.0,66852.0,0.14782309]
[1772996346263,0.06978536,66858.0,66852.0,0.14782309]
[1772996347187,0.03991684,66857.0,66844.0,0.07628094]
[1772996347385,0.03991684,66857.0,66845.0,0.00148]
[1772996347590,0.03991684,66855.0,66845.0,0.00148]
[1772996349989,0.07478984,66854.0,66845.0,0.00148]
[1772996350422,0.07478984,66854.0,66848.0,0.0002]
[1772996355763,0.03969128,66853.0,66842.0,0.0002]
[1772996356084,0.04117128,66853.0,66842.0,0.0002]
[1772996356374,0.03969128,66851.0,66842.0,1e-08]
[1772996361819,0.03969128,66849.0,66838.0,0.00015]
[1772996363044,0.00148,66848.0,66838.0,0.00015]
[1772996363621,0.04117128,66848.0,66838.0,0.00015]
[1772996363848,0.07479767,66847.0,66838.0,0.00015]
[1772996364069,0.07464621,66847.0,66838.0,0.00015]
[1772996367495,0.11433749,66847.0,66838.0,0.00015]
[1772996370332,0.11433749,66847.0,66838.0,0.00035]
[1772996370539,0.03969128,66846.0,66838.0,0.00035]
[1772996370865,0.07479991,66845.0,66838.0,0.00035]
[1772996374331,0.11449119,66845.0,66836.0,0.00578]
[1772996374530,0.03969128,66844.0,66836.0,0.00578]
[1772996375215,0.07480214,66843.0,66836.0,0.00578]
[1772996375553,0.07480214,66843.0,66829.0,0.04298347]
[1772996375554,0.04117128,66842.0,66824.0,0.00043]
[1772996375699,0.04117128,66842.0,66828.0,0.0018383]
[1772996376098,0.13576551,66842.0,66828.0,0.0003583]
[1772996376288,0.13576551,66842.0,66828.0,1e-08]
[1772996376289,0.03969128,66839.0,66828.0,1e-08]
[1772996376850,0.03969128,66839.0,66824.0,0.00043]
[1772996376851,0.13428551,66838.0,66824.0,0.00043]
[1772996377037,0.04117128,66837.0,66824.0,0.00043]
[1772996377347,0.03969128,66835.0,66824.0,0.00043]
[1772996378728,0.03969128,66835.0,66824.0,0.0007736]
[1772996379329,0.03909617,66833.0,66824.0,0.0007736]
[1772996381166,0.03909617,66833.0,66828.0,0.0002]
[1772996381360,0.0672792,66834.0,66828.0,0.0002]
[1772996381530,0.07481446,66832.0,66824.0,0.0007736]
[1772996385309,0.03909617,66831.0,66821.0,0.0002]
[1772996385912,0.07481669,66830.0,66821.0,0.0002]
[1772996387258,0.07481669,66830.0,66820.0,5e-05]
[1772996387460,0.03909617,66829.0,66820.0,5e-05]
[1772996387828,0.07481669,66830.0,66820.0,5e-05]
[1772996389163,0.03909617,66829.0,66818.0,0.0002]
[1772996390364,0.1139151,66828.0,66818.0,0.0002]
[1772996390521,0.00148,66827.0,66818.0,1e-08]
[1772996392761,0.07482117,66826.0,66818.0,1e-08]
[1772996394392,0.07582117,66826.0,66818.0,1e-08]
[1772996395475,0.07582117,66826.0,66810.0,0.00025]
[1772996395695,0.07582117,66826.0,66811.0,0.00148]
[1772996395696,0.03909617,66825.0,66811.0,0.00148]
[1772996396150,0.03909617,66825.0,66810.0,0.00025]
[1772996396659,0.03909617,66825.0,66782.0,0.04215641]
[1772996396660,0.00559,66809.0,66782.0,0.04215641]
[1772996396866,0.00559,66809.0,66785.0,0.04215641]
[1772996397035,0.00559,66809.0,66787.0,0.04215641]
[1772996397036,0.00148,66809.0,66787.0,0.04215641]
[1772996397237,0.07484133,66808.0,66790.0,0.0748615]
[1772996397440,0.07484133,66808.0,66792.0,0.14593409]
[1772996397638,0.07484133,66808.0,66794.0,0.04215641]
[1772996397808,0.07484133,66808.0,66794.0,0.04255443]
[1772996398015,0.07484133,66808.0,66796.0,0.04215641]
[1772996398016,0.07518023,66808.0,66796.0,0.04215641]
[1772996398659,0.07518023,66808.0,66803.0,0.0002]
[1772996399790,0.07518023,66808.0,66796.0,0.04235641]
[1772996400970,0.07518023,66808.0,66789.0,0.04215641]
[1772996401171,0.07518023,66808.0,66789.0,0.04227566]
[1772996401376,0.07518023,66808.0,66790.0,0.14593409]
[1772996401680,0.13428551,66817.0,66795.0,0.04215641]
[1772996401681,0.07483284,66816.0,66795.0,0.04215641]
[1772996401909,0.0748249,66823.0,66799.0,0.14593409]
[1772996402116,0.0748249,66823.0,66802.0,0.14593409]
[1772996402282,0.04974199,66820.0,66804.0,0.04215641]
[1772996402485,0.07505394,66824.0,66807.0,0.14593409]
[1772996402815,0.07481781,66829.0,66808.0,0.053669]
[1772996402973,0.07481781,66829.0,66811.0,0.14329956]
[1772996403178,0.07481781,66829.0,66815.0,0.14329956]
[1772996403406,0.07481781,66829.0,66808.0,0.052189]
[1772996403407,0.07481781,66829.0,66818.0,0.04215641]
[1772996403608,0.07481781,66829.0,66820.0,0.04215641]
[1772996404336,0.07521519,66829.0,66820.0,0.04215641]
[1772996405724,0.07521519,66829.0,66822.0,0.04185919]
[1772996418902,0.07521519,66829.0,66820.0,0.07482784]
[1772996419106,0.07521519,66829.0,66819.0,0.00168]
[1772996419671,0.07521519,66829.0,66819.0,0.04398224]
[1772996420881,0.07656782,66830.0,66820.0,0.1389345]
[1772996421012,0.07656782,66830.0,66821.0,0.04230224]
[1772996421210,0.07481781,66829.0,66821.0,0.04230224]
[1772996421603,0.07481781,66829.0,66822.0,0.0002]
[1772996422053,0.07503782,66829.0,66822.0,0.0002]
[1772996422420,0.07503782,66829.0,66822.0,3.343e-05]
[1772996423237,0.07508782,66830.0,66822.0,0.04233567]
[1772996423445,0.07481781,66829.0,66822.0,0.04233567]
[1772996426341,0.00559,66836.0,66823.0,0.04230224]
[1772996426689,0.08039999,66836.0,66823.0,0.04230224]
[1772996428059,0.08039999,66836.0,66825.0,0.04230224]
[1772996428258,0.08039999,66836.0,66826.0,0.00148]
[1772996428836,0.08039999,66836.0,66827.0,0.04230224]
[1772996430024,0.08039999,66836.0,66827.0,0.11712142]
[1772996431594,0.08062,66836.0,66827.0,0.11712142]
[1772996435925,0.08062,66836.0,66827.0,0.11695485]
[1772996436764,0.08062056,66836.0,66827.0,0.11695485]
[1772996438350,0.1151266,66843.0,66827.0,0.11695485]
[1772996438351,0.00022001,66843.0,66827.0,0.07481918]
[1772996438550,0.07479773,66847.0,66830.0,0.04181553]
[1772996438750,0.07479773,66847.0,66827.0,0.07481918]
[1772996438751,0.07479773,66847.0,66832.0,0.15368262]
[1772996438972,0.00023,66848.0,66833.0,0.04181553]
[1772996439202,0.00148,66847.0,66833.0,0.04181553]
[1772996439768,0.07627788,66847.0,66833.0,0.04181553]
[1772996439970,0.07479788,66847.0,66833.0,0.04181553]
[1772996440171,0.07627788,66847.0,66834.0,0.07481222]
[1772996440396,0.07627788,66847.0,66835.0,0.04181553]
[1772996441118,0.00022001,66843.0,66835.0,0.04181553]
[1772996441487,0.00022001,66843.0,66790.0,0.4488088]
[1772996441692,0.00022001,66843.0,66817.0,0.07483013]
[1772996441693,0.04974862,66840.0,66817.0,0.07483013]
[1772996441891,0.04377345,66827.0,66816.0,0.07483237]
[1772996442195,0.04377345,66827.0,66815.0,0.07503237]
[1772996442196,0.1541102,66823.0,66815.0,0.0002]
[1772996443010,0.07481682,66830.0,66815.0,0.0002]
[1772996443011,0.07481664,66831.0,66816.0,0.04181553]
[1772996443341,0.00148,66830.0,66816.0,0.04181553]
[1772996445204,0.07481781,66829.0,66817.0,0.07483125]
[1772996448257,0.07634748,66830.0,66817.0,0.04181553]
[1772996448420,0.00148,66829.0,66817.0,0.04181553]
[1772996449448,5e-05,66830.0,66817.0,0.04181553]
[1772996449650,0.00148,66829.0,66817.0,0.04181553]
[1772996450276,5e-05,66830.0,66818.0,0.07483013]
[1772996450439,0.00148,66829.0,66818.0,0.11664566]
[1772996451157,0.00148,66829.0,66818.0,0.07483013]
[1772996451435,0.00148,66829.0,66819.0,0.04181553]
[1772996451679,0.00148,66829.0,66817.0,0.07483013]
[1772996451878,0.04377345,66826.0,66816.0,0.07503233]
[1772996452078,0.19788365,66824.0,66816.0,0.07503233]
[1772996452702,0.07482453,66823.0,66816.0,0.07503233]
[1772996452905,0.19788365,66824.0,66816.0,0.07503233]
[1772996455462,0.00148,66823.0,66816.0,0.07503233]
[1772996460458,0.07482565,66822.0,66802.0,0.04201553]
[1772996460683,0.1541102,66819.0,66808.0,0.07504127]
[1772996460882,0.04377345,66816.0,66808.0,0.07504127]
[1772996461081,0.1555902,66815.0,66808.0,0.07504127]
[1772996461283,0.00148,66814.0,66807.0,0.07484245]
[1772996461853,0.00148,66814.0,66802.0,0.04201553]
[1772996461854,0.00148,66814.0,66802.0,0.0002]
[1772996462053,0.00148,66814.0,66799.0,0.07485077]
[1772996462054,0.04377345,66810.0,66796.0,0.07485477]
[1772996462258,0.1541102,66807.0,66796.0,0.07485477]
[1772996462480,0.07484469,66805.0,66796.0,0.07485477]
[1772996463534,0.07484469,66805.0,66802.0,0.0002]
[1772996463889,0.00148,66806.0,66802.0,0.0002]
[1772996465531,0.07484469,66805.0,66802.0,0.0002]
[1772996465889,0.07469469,66805.0,66802.0,0.0002]
[1772996466470,0.19543837,66810.0,66799.0,0.07485141]
[1772996466471,5e-05,66810.0,66800.0,0.04403939]
[1772996467200,5e-05,66810.0,66802.0,0.04403939]
[1772996467674,5e-05,66810.0,66801.0,0.07484917]
[1772996467945,0.04206957,66808.0,66800.0,0.07484946]
[1772996468600,0.04354547,66806.0,66797.0,0.07485259]
[1772996468801,0.04354547,66804.0,66797.0,0.07485259]
[1772996469242,0.04354547,66804.0,66796.0,0.07485262]
[1772996469243,0.07484693,66803.0,66796.0,0.07485262]
[1772996469972,0.07484693,66803.0,66788.0,0.04544012]
[1772996469973,0.04354547,66802.0,66787.0,0.12030402]
[1772996470173,0.04354547,66802.0,66795.0,0.0002]
[1772996471335,0.07484648,66804.0,66795.0,0.0002]
[1772996471526,0.1533188,66803.0,66795.0,0.0002]
[1772996471685,0.04354547,66802.0,66795.0,0.0002]
[1772996473418,0.11839405,66802.0,66795.0,0.0002]
[1772996473995,0.07484137,66808.0,66795.0,0.04564012]
[1772996474201,0.00148,66807.0,66795.0,0.04564012]
[1772996474735,0.00148,66806.0,66795.0,0.04564012]
[1772996475143,0.07484137,66808.0,66795.0,0.04564012]
[1772996475144,0.00148,66805.0,66795.0,0.04564012]
[1772996475381,0.07484581,66804.0,66795.0,0.0002]
[1772996475555,0.11839128,66804.0,66795.0,0.0002]
[1772996475856,0.11987128,66804.0,66795.0,0.0002]
[1772996476182,0.00148,66803.0,66795.0,0.0002]
[1772996477749,0.00148,66809.0,66798.0,0.04544012]
[1772996477966,0.00148,66809.0,66800.0,0.04544012]
[1772996478181,0.00148,66809.0,66795.0,0.00168]
[1772996478380,0.04502547,66809.0,66795.0,0.00168]
[1772996482282,0.11986595,66809.0,66796.0,0.07485478]
[1772996484169,0.11986595,66809.0,66796.0,0.07505478]
[1772996484457,0.12008596,66809.0,66796.0,0.07505478]
[1772996487828,0.04354547,66808.0,66796.0,0.07505478]
[1772996488030,0.04354547,66806.0,66796.0,0.07505478]
[1772996488230,0.04354547,66804.0,66796.0,0.07505478]
[1772996488826,0.04354547,66804.0,66796.0,0.07513758]
[1772996489251,0.0192239,66804.0,66796.0,0.07513758]
[1772996489795,0.00148,66806.0,66796.0,0.07513758]
[1772996500489,0.27345897,66806.0,66796.0,0.07513758]
[1772996500911,0.19861502,66806.0,66796.0,0.07513758]
[1772996501113,0.17577348,66806.0,66796.0,0.07513758]
[1772996501551,0.17599349,66806.0,66796.0,0.07513758]
[1772996501746,0.15322406,66806.0,66796.0,0.07513758]
[1772996505318,0.00170001,66806.0,66796.0,0.11932854]
[1772996505676,0.00170001,66806.0,66796.0,0.07513758]
[1772996510378,0.00170001,66806.0,66796.0,0.11932854]
[1772996512744,0.15152405,66805.0,66796.0,0.07513758]
[1772996514022,0.00170001,66806.0,66796.0,0.07513758]
[1772996514671,0.00170001,66806.0,66796.0,0.05494372]
[1772996516431,0.01070691,66806.0,66796.0,0.05494372]
[1772996517132,0.07484469,66805.0,66789.0,0.07527544]
[1772996517457,0.18975954,66804.0,66789.0,0.07527544]
[1772996517618,0.07484469,66805.0,66789.0,0.07527544]
[1772996518040,0.15152405,66804.0,66789.0,0.07527544]
[1772996518238,0.15152405,66802.0,66789.0,0.07527544]
[1772996518443,0.07484469,66805.0,66782.0,0.08064973]
[1772996518444,0.15152405,66798.0,66782.0,0.00578]
[1772996518792,0.15152405,66794.0,66783.0,0.07482878]
[1772996518942,0.15152405,66794.0,66778.0,0.07508782]
[1772996518943,0.04979056,66792.0,66770.0,0.08419079]
[1772996519139,0.0748615,66790.0,66771.0,0.04419096]
[1772996519310,0.26465195,66790.0,66771.0,0.04419096]
[1772996519507,0.14923752,66789.0,66771.0,0.04419096]
[1772996519752,0.15152405,66786.0,66771.0,0.04419096]
[1772996519953,0.00148,66785.0,66771.0,0.04419096]
[1772996520395,0.00148,66784.0,66771.0,0.04419096]
[1772996521204,0.07486935,66783.0,66773.0,0.04419096]
[1772996521772,0.07486935,66783.0,66772.0,0.07488168]
[1772996521967,0.07486935,66783.0,66771.0,0.07488168]
[1772996522617,0.07486935,66783.0,66771.0,0.11907264]
[1772996522793,0.00148,66782.0,66771.0,0.11907264]
[1772996523010,0.00148,66782.0,66771.0,0.07488168]
[1772996523210,0.00148,66782.0,66772.0,0.04419096]
[1772996523974,0.07487159,66781.0,66773.0,0.07488056]
[1772996524489,0.07487159,66781.0,66773.0,0.11907152]
[1772996524696,0.00148,66782.0,66773.0,0.07488056]
[1772996524894,0.00152,66783.0,66776.0,0.04486237]
[1772996525499,0.00152,66785.0,66776.0,0.04486237]
[1772996526101,0.0763876,66785.0,66777.0,0.07487608]
[1772996526334,0.0763876,66785.0,66776.0,0.07487608]
[1772996526721,0.0748676,66785.0,66776.0,0.07487608]
[1772996526908,0.00152,66784.0,66776.0,0.07487608]
[1772996529407,0.00152,66784.0,66775.0,0.04660125]
[1772996529615,0.00152,66784.0,66776.0,0.04660125]
[1772996531606,0.00174001,66784.0,66777.0,0.12147733]
[1772996532758,0.00152,66783.0,66777.0,0.12147733]
[1772996533166,0.00152,66783.0,66773.0,0.07487956]
[1772996533367,0.19013513,66783.0,66773.0,0.07487956]
[1772996533569,0.07487047,66782.0,66773.0,0.07487956]
[1772996536599,0.07487047,66782.0,66773.0,0.12148081]
[1772996538766,0.07483047,66782.0,66773.0,0.12148081]
[1772996539162,0.07639006,66783.0,66773.0,0.12148081]
[1772996539163,0.00152,66783.0,66773.0,0.07487956]
[1772996539408,0.00152,66783.0,66774.0,0.04660125]
[1772996539759,0.07638967,66783.0,66774.0,0.04660125]
[1772996540408,0.07638967,66783.0,66775.0,0.12147957]
[1772996540606,0.07486967,66783.0,66775.0,0.12147957]
[1772996540781,0.00148,66782.0,66775.0,0.12147957]
[1772996541677,0.00170001,66782.0,66775.0,0.12147957]
[1772996543271,0.00170001,66782.0,66774.0,0.07487832]
[1772996543467,0.00170001,66782.0,66775.0,0.07487832]
[1772996543668,0.00170001,66782.0,66775.0,0.12147957]
[1772996543910,0.00170001,66782.0,66776.0,0.04660125]
[1772996544111,0.07657067,66782.0,66776.0,0.04660125]
[1772996544511,0.00170001,66782.0,66776.0,0.04660125]
[1772996544921,0.00148,66781.0,66776.0,0.04660125]
[1772996545122,0.00148,66781.0,66777.0,0.07487608]
[1772996545338,0.00148,66781.0,66777.0,0.12147733]
[1772996545737,0.00148,66781.0,66777.0,0.07487608]
[1772996547545,0.00148,66781.0,66775.0,0.07487832]
[1772996552467,0.00148,66781.0,66775.0,0.12147957]
[1772996553602,0.00148,66781.0,66774.0,0.04660125]
[1772996556735,0.00148,66781.0,66775.0,0.07487832]
[1772996557740,0.11936681,66781.0,66771.0,0.00035]
[1772996557955,0.11936681,66781.0,66768.0,0.07500587]
[1772996557956,0.04301506,66778.0,66768.0,0.07500587]
[1772996558151,0.18840944,66777.0,66768.0,0.07512534]
[1772996558358,0.00152,66776.0,66768.0,0.07512534]
[1772996558508,0.00152,66776.0,66768.0,0.00023947]
[1772996558714,0.07487832,66775.0,66768.0,0.00023947]
[1772996559111,0.04506331,66774.0,66764.0,0.00048]
[1772996559318,0.04518244,66774.0,66764.0,0.00044]
[1772996559518,0.04518244,66774.0,66768.0,0.0002]
[1772996561316,0.07488056,66773.0,66768.0,0.0002]
[1772996563283,0.00152,66772.0,66768.0,0.0002]
[1772996563451,0.07640256,66772.0,66768.0,0.0002]
[1772996569976,0.08540946,66772.0,66768.0,0.0002]
[1772996571101,0.00152,66771.0,66768.0,0.0002]
[1772996571948,0.07488056,66773.0,66768.0,0.0002]
[1772996571949,5e-05,66780.0,66769.0,0.15530971]
[1772996572177,0.00152,66779.0,66770.0,0.04457169]
[1772996572528,0.07487495,66778.0,66770.0,0.11945491]
[1772996572727,0.07487495,66778.0,66770.0,0.07488322]
[1772996575801,0.07487495,66778.0,66768.0,0.07508507]
[1772996576011,0.07509496,66778.0,66768.0,0.07508507]
[1772996576201,0.00148,66777.0,66768.0,0.07508507]
[1772996577654,0.00148,66777.0,66769.0,0.04457169]
[1772996578175,0.07635638,66777.0,66770.0,0.07488392]
[1772996579321,0.07631638,66777.0,66770.0,0.07488392]